Cogmind - Beta 11 @@@ ROGUE MODE // 2022.03.20 @ 02:26:24 Player: Red Box Result: Destroyed by D-53 Grenadier with Mini Grenade Launcher Performance ------------- Evolutions (1) 500 Regions Visited (4) 800 Robots Destroyed (76) 380 Value Destroyed (1721) 1721 Prototype IDs (11) 220 Alien Tech Used (0) 0 Bonus (292) 292 TOTAL SCORE: 3913 Bonus ------- High Alert Combat Kills 217 Follower Combat Kills 75 Cogmind --------- Core Integrity 0/400 Matter 300/300 Energy 274/280 System Corruption 2% Temperature Cool (60) Movement Treading (160) Location -9/Mines Parts ------- > --- POWER (1) -------- Heavy Ion Engine > --- PROPULSION (2) --- Improved Treads Improved Treads > --- UTILITY (3) ------ Cooling System Large Storage Unit Improved Terrain Scanner > --- WEAPON (3) ------- Improved Medium Laser Improved Medium Laser Improved Medium Laser > --- INVENTORY (15) --- Compact Wheel High-capacity Battery (250) Terrain Scan Processor Utility Shielding Bomb Drone Bay (16/16) Particle Cannon Advanced Beam Cannon Improved Light Cannon Mini Grenade Launcher Heavy Hammer Heavy Explosive Trap Heavy Explosive Trap Heavy Explosive Trap Heavy Explosive Trap Peak State ------------ > --- POWER ------------ Heavy Ion Engine > --- PROPULSION ------- Improved Treads Improved Treads > --- UTILITY ---------- Cooling System Large Storage Unit Improved Terrain Scanner > --- WEAPON ----------- Improved Medium Laser Improved Medium Laser Improved Medium Laser > --- INVENTORY -------- Wheel Compact Wheel High-capacity Battery Utility Shielding Bomb Drone Bay Particle Cannon Advanced Beam Cannon Improved Light Cannon Mini Grenade Launcher Mining Laser Heavy Hammer [Rating: 25] Favorites ----------- Power Ion Engine Engine Ion Engine Propulsion Aluminum Leg Treads Improved Treads Leg Aluminum Leg Wheel Compact Wheel Utility Large Storage Unit Device Cooling System Storage Large Storage Unit Processor Targeting Computer Protection Light Armor Plating Weapon Improved Medium Laser Energy Gun Improved Medium Laser Energy Cannon Particle Cannon Ballistic Gun Assault Rifle Ballistic Cannon Improved Light Cannon Launcher Mini Grenade Launcher Impact Weapon Heavy Hammer Build | -11 -10 -10 -9 -9 ------- Run | Scr Mat Min Mat Min Slots Evolved 2 | . . . 2 . Power . | . . . . . Propulsion . | . . . . . Utility 1 | . . . 1 . Weapon 1 | . . . 1 . Parts Attached 77 | 6 9 6 42 14 Power 8 | 1 2 1 3 1 Engine 8 | 1 2 1 3 1 Core . | . . . . . Reactor . | . . . . . Propulsion 18 | 2 . 2 12 2 Treads 6 | . . . 4 2 Leg 4 | 2 . 2 . . Wheel 8 | . . . 8 . Hover . | . . . . . Flight . | . . . . . Utility 12 | 1 3 1 5 2 Device 5 | . . . 3 2 Storage 3 | 1 1 1 . . Processor 2 | . 1 . 1 . Hackware . | . . . . . Protection 2 | . 1 . 1 . Artifact . | . . . . . Weapon 39 | 2 4 2 22 9 Energy Gun 15 | . 3 1 5 6 Energy Cannon 10 | . . . 10 . Ballistic Gun 6 | 2 1 . 3 . Ballistic Cannon 2 | . . . 1 1 Launcher 2 | . . . 1 1 Special Weapon . | . . . . . Impact Weapon 4 | . . 1 2 1 Slashing Weapon . | . . . . . Piercing Weapon . | . . . . . Special Melee Weapon . | . . . . . Unidentified Prototypes 2 | . 1 . 1 . Parts Lost 11 | . . . 4 7 Power 1 | . . . . 1 Propulsion 4 | . . . 2 2 Utility 3 | . . . 1 2 Weapon 3 | . . . 1 2 Highest Loss Streak 6 | . . . 2 6 To Critical Strikes . | . . . . . Average Slot Usage (%) 99 | . 98 100 99 98 Engine 12 | . 14 14 11 10 Treads 8 | . . . 11 21 Leg 11 | . 28 28 1 . Wheel 4 | . . . 9 . Device 9 | . . . 12 21 Storage 12 | . 14 14 11 11 Processor 8 | . 12 14 7 . Energy Gun 13 | . 9 25 10 14 Energy Cannon 12 | . . . 20 16 Ballistic Gun 3 | . 18 . . . Naked Turns . | . . . . . Heaviest Build 45 | 11 21 31 45 45 Greatest Support 46 | 20 20 20 43 46 Greatest Overweight (x) 3 | . 1 1 3 1 Average Overweight (x) . | . . 1 . . Largest Inventory Capacity 15 | 8 10 15 15 15 Average Capacity 13 | 6 9 14 15 15 Most Carried 15 | 5 10 15 15 15 Average Carried 13 | 3 9 13 14 14 Final Capacity 15 | 8 10 15 15 15 Final Carried 15 | 5 10 15 15 15 Class Distribution -------------------- 48% | Gunner 42% | Mutant 8% | Skirmisher Dominant Class ---------------- Mutant | -10/Materials Mutant | -10/Mines Gunner | -9/Materials Skirmisher | -9/Mines Resources | -11 -10 -10 -9 -9 ----------- Run | Scr Mat Min Mat Min Matter Collected 1189 | 223 247 60 491 168 Remotely . | . . . . . Salvage Created 2492 | . 327 131 1816 218 Parts 151 | . 33 5 104 9 Haulers Intercepted 7 | . 2 . 5 . Recyclers Shooed 1 | . . . 1 . Parts Field Recycled . | . . . . . Retrieved Matter . | . . . . . Parts Self-Destructed . | . . . . . Prevented . | . . . . . Kills | -11 -10 -10 -9 -9 ------- Run | Scr Mat Min Mat Min Combat Hostiles Destroyed 74 | . 9 3 43 19 Melee 1 | . . . . 1 Guns 36 | . 9 2 20 5 Cannons 28 | . . . 17 11 AOE 6 | . . . 4 2 Classes Destroyed 10 | . 4 2 3 1 Worker 1 | . . . 1 . Builder 3 | . . 1 2 . Hauler 7 | . 2 . 5 . Watcher 6 | . 3 . 3 . Swarmer 25 | . 8 . 13 4 Grunt 22 | . 1 2 19 . Protector 1 | . . . 1 . Sentry 10 | . . . 10 . Demolisher 1 | . . . . 1 Assembled 15 | . . 1 . 14 Best Kill Streak 13 | . 3 1 8 13 Combat Bots Only 13 | . 3 1 7 13 Max Kills in Single Turn 6 | . 2 1 6 2 Gunslinging 1 | . 1 . . 1 Exploded 4 | . . . 4 2 Melee 1 | . . . . 1 Uniques/NPCs Destroyed . | . . . . . Combat | -11 -10 -10 -9 -9 -------- Run | Scr Mat Min Mat Min Damage Taken 2452 | . 237 98 1047 1070 Core 516 | . 73 27 234 182 Absorbed by Shields . | . . . . . Regen/Repaired (Parts) 126 | . . . 126 . Core Remaining (%) 80 | 100 . 60 . . Volleys Fired 163 | . 38 3 95 27 Largest 3 | . 2 2 3 3 Hottest 204 | . 112 112 204 204 Shots Fired 427 | . 76 6 274 71 Gun 221 | . 76 6 113 26 Cannon 203 | . . . 159 44 Launcher 3 | . . . 2 1 Special . | . . . . . Kinetic 76 | . 60 . 6 10 Thermal 348 | . 16 6 266 60 Explosive 3 | . . . 2 1 Electromagnetic . | . . . . . Robot Hit Streak 20 | . 8 2 20 8 Robot Miss Streak 6 | . 6 1 4 6 Penetration Max . | . . . . . Secondary Targets 2 | . 1 . . 1 Max Gunslinging Chain 1 | . 1 . . 1 Shots Hit Robots 246 | . 41 5 164 36 Core Hits 119 | . 18 3 73 25 Critical Kills 2 | . . . 2 . Critical Parts Destroyed . | . . . . . Critical Strikes 14 | . 3 . 9 2 Burn 12 | . 3 . 7 2 Meltdown 2 | . . . 2 . Melee Attacks 39 | . . 32 2 5 Impact 39 | . . 32 2 5 Slashing . | . . . . . Piercing . | . . . . . Sneak Attacks 1 | . . 1 . . Combat Hostiles . | . . . . . Follow-up Attacks . | . . . . . Damage Inflicted 5291 | . 499 208 3592 992 Guns 2146 | . 499 51 1393 203 Cannons 2310 | . . . 1916 394 Explosions 498 | . . . 283 215 Melee 337 | . . 157 . 180 Ramming . | . . . . . Kinetic 527 | . 363 . 60 104 Thermal 3929 | . 136 51 3249 493 Explosive 498 | . . . 283 215 Electromagnetic . | . . . . . Impact 337 | . . 157 . 180 Slashing . | . . . . . Piercing . | . . . . . Highest Corruption 2 | . . . 2 2 Average Corruption 2 | . . . 2 2 Corruption Purged . | . . . . . Corruption Blocked . | . . . . . Effects 43 | . . . 29 14 Message Errors 9 | . . . 7 2 Matter Fused 7 | . . . 5 2 Heat Flow Errors 6 | . . . 6 . Energy Discharges 6 | . . . 2 4 Parts Rejected 1 | . . . . 1 Data Loss (minor) 8 | . . . 6 2 Data Loss (major) 1 | . . . 1 . Misfires 3 | . . . 2 1 Alerts 1 | . . . . 1 Weapon Failures 1 | . . . . 1 Overload Shots . | . . . . . Overflow Damage 158 | . . 97 31 30 Projectiles 43 | . . . 31 12 Explosions . | . . . . . Melee 115 | . . 97 . 18 Knockbacks 3 | . . . . 3 Impact 3 | . . . . 3 Kinetic . | . . . . . Secondary . | . . . . . Self-Inflicted Damage 30 | . . . 30 . Shots 1 | . . . 1 . Rammed . | . . . . . Targets Rammed . | . . . . . Kicked . | . . . . . Crushed . | . . . . . Highest Temperature 363 | . 204 51 352 363 Average Temperature 90 | . 80 26 98 72 Received Heat Transfer 455 | . 6 74 315 60 Effects 3 | . . . 3 . Energy Bleed 1 | . . . 1 . Interference 2 | . . . 2 . Siege Activations . | . . . . . Robots Corrupted . | . . . . . Combat Hostiles . | . . . . . Parts Fried 1 | . . 1 . . Impact Corruptions 4 | . . 2 . 2 Robots Melted 3 | . . . 3 . Combat Hostiles 2 | . . . 2 . Parts Melted 22 | . 2 . 20 . Heat Transferred 8359 | . 518 111 6620 1110 Parts Sabotaged . | . . . . . Parts Stolen . | . . . . . Parts Stripped . | . . . . . Power Chain Reactions . | . . . . . Missiles Intercepted . | . . . . . Alert | -11 -10 -10 -9 -9 ------- Run | Scr Mat Min Mat Min Peak Influence 832 | . 191 94 832 298 Initial 298 | . . 3 25 298 Average 268 | . 87 40 485 157 Maximum Alert Level 3 | . . . 3 1 Low Security (%) 55 | 100 100 100 14 61 Level 1 15 | . . . 20 38 Level 2 17 | . . . 39 . Level 3 11 | . . . 26 . Level 4 . | . . . . . Level 5 . | . . . . . High Security . | . . . . . Max Security . | . . . . . Squads Dispatched 8 | . 2 . 6 . Investigation 5 | . 1 . 4 . Extermination . | . . . . . Reinforcement 2 | . 1 . 1 . Assault 1 | . . . 1 . Garrison . | . . . . . Intercept . | . . . . . Searches Triggered . | . . . . . Construction Impeded . | . . . . . Haulers Reinforced . | . . . . . Active Scanning Responses . | . . . . . Cargo Convoy Interrupts . | . . . . . Stealth | -11 -10 -10 -9 -9 --------- Run | Scr Mat Min Mat Min Distress Signals 3 | . 1 . 2 . Communications Jammed . | . . . . . Distress Signals . | . . . . . Times Spotted 102 | . 18 4 58 22 Peak Tracking Total 8 | . 4 2 7 8 Tactical Retreats 6 | . 2 . 2 2 Traps | -11 -10 -10 -9 -9 ------- Run | Scr Mat Min Mat Min Traps Triggered 4 | . 1 . 3 . Indirectly . | . . . . . Trap Hack Attempts . | . . . . . Triggered . | . . . . . Disarmed . | . . . . . Reprogrammed 6 | . . . 6 . Reused . | . . . . . Traps Extracted . | . . . . . Installed . | . . . . . Triggered . | . . . . . Most Traps Carried 4 | . . . . 4 Machines | -11 -10 -10 -9 -9 ---------- Run | Scr Mat Min Mat Min Machines Disabled 3 | . . . 1 2 Max in Single Turn 2 | . . . 1 2 Machines Sabotaged . | . . . . . Garrisons Compromised . | . . . . . Overloaded Fab Kills . | . . . . . Hacking | -11 -10 -10 -9 -9 --------- Run | Scr Mat Min Mat Min Machines Accessed 27 | . 9 1 17 . Terminals 18 | . 7 . 11 . Fabricators . | . . . . . Repair Stations 2 | . . . 2 . Recycling Units 4 | . 2 . 2 . Scanalyzers 2 | . . . 2 . Garrison Access . | . . . . . Total Hacks 81 | . 31 1 49 . Successful 48 | . 16 1 31 . Failed 33 | . 15 . 18 . Catastrophic 2 | . 1 . 1 . Database Lockouts . | . . . . . Manual 52 | . 24 . 28 . Terminals 59 | . 24 . 35 . Fabricators . | . . . . . Repair Stations 4 | . . . 4 . Recycling Units 12 | . 7 . 5 . Scanalyzers 5 | . . . 5 . Garrison Access . | . . . . . Terminal Hacks 15 | . 4 1 10 . Robot Analysis 4 | . 2 . 2 . Prototype ID Bank 4 | . 1 . 3 . Open Door 1 | . . 1 . . Branch Access Points 1 | . . . 1 . Terminal Index 2 | . 1 . 1 . Locate Traps 2 | . . . 2 . Reprogram Traps 1 | . . . 1 . Fabricator Hacks . | . . . . . Repair Station Hacks 4 | . . . 4 . Scan Component 2 | . . . 2 . Repair 2 | . . . 2 . Recycling Unit Hacks 2 | . 1 . 1 . Retrieve Components 2 | . 1 . 1 . Scanalyzer 5 | . . . 5 . Insert Component 3 | . . . 3 . Analyze 2 | . . . 2 . Garrison Access Hacks . | . . . . . Unauthorized Hacks 22 | . 11 . 11 . Terminals 17 | . 8 . 9 . Track 2 | . 1 . 1 . Assimilate 1 | . . . 1 . Botnet 10 | . 5 . 5 . Disrupt 2 | . 1 . 1 . Operators 2 | . 1 . 1 . Fabricators . | . . . . . Repair Stations . | . . . . . Recycling Units 5 | . 3 . 2 . Reject 4 | . 2 . 2 . Tunnel 1 | . 1 . . . Scanalyzers . | . . . . . Garrison Access . | . . . . . Data Cores Recovered . | . . . . . Used . | . . . . . Hacking Detections 26 | . 9 . 17 . Full Trace Events 2 | . . . 2 . Feedback Events . | . . . . . Feedback Blocked . | . . . . . Robot Schematics Acquired . | . . . . . Robots Built . | . . . . . Authchips . | . . . . . Time . | . . . . . Total Robot Build Rating . | . . . . . Part Schematics Acquired 2 | . . . 2 . Parts Built . | . . . . . Authchips . | . . . . . Time . | . . . . . Total Part Build Rating . | . . . . . Parts Repaired 2 | . . . 2 . Time 83 | . . . 83 . Parts Recycled . | . . . . . Recycled Matter . | . . . . . Retrieved Matter . | . . . . . Retrieved Components 16 | . 7 . 9 . Parts Scanalyzed 2 | . . . 2 . Part Schematics Acquired 2 | . . . 2 . Parts Damaged . | . . . . . Bothacking | -11 -10 -10 -9 -9 ------------ Run | Scr Mat Min Mat Min Used RIF Installer . | . . . . . Robots Hacked . | . . . . . Non-combat . | . . . . . Combat . | . . . . . Robot Hacks Applied . | . . . . . Relay Couplers Released . | . . . . . Fabnet Peak Effective % . | . . . . . Robots Rewired . | . . . . . Allies Hacked . | . . . . . Hacks Repelled . | . . . . . Allies | -11 -10 -10 -9 -9 -------- Run | Scr Mat Min Mat Min Total Allies 4 | . . 3 1 . Largest Group 3 | . . 3 1 1 Highest-Rated Group 40 | . . 40 16 10 Highest-Rated Ally 16 | . . 16 16 10 Total Orders 2 | . . . 2 . STAY 1 | . . . 1 . FOLLOW 1 | . . . 1 . Ally Attacks 26 | . . 15 11 . Total Damage 239 | . . 149 90 . Kills 4 | . . 3 1 . Allies Corrupted . | . . . . . Allies Melted . | . . . . . Intel | -11 -10 -10 -9 -9 ------- Run | Scr Mat Min Mat Min Robot Analysis Total 4 | . 2 . 2 . Derelict Logs Recovered 3 | . . 2 . 1 Drone Launches . | . . . . . Drone Recoveries . | . . . . . Exploration | -11 -10 -10 -9 -9 ------------- Run | Scr Mat Min Mat Min Turns Passed 6452 | 74 1258 1176 2907 1037 Spaces Moved 3430 | 54 791 557 1557 471 Core 6 | 6 . . . . Treads 1065 | . . . 594 471 Legs 1485 | 48 791 557 89 . Wheels 874 | . . . 874 . Hover . | . . . . . Flight . | . . . . . Fastest Speed 50 | 50 120 190 95 160 Average Speed 158 | 112 138 190 148 193 Slowest Speed 240 | 120 190 190 240 240 Overloaded Moves . | . . . . . Propulsion Burnouts . | . . . . . Robots Hopped . | . . . . . Cave-ins Triggered . | . . . . . Exploration Rate (%) 78 | 5 97 95 97 96 Regions Visited 4 Branch Regions 2 Pre-discovered Areas 1 | . 1 . . . Known Exits Taken 1 | . . . 1 . Unknown Exits Taken 3 | 1 1 1 . . Scrap Searched 4 | . . 3 . 1 Spaces Dug 8 | . . 6 2 . Terrain Destroyed 32 | . . 6 19 7 Melee 8 | . . 6 2 . Projectile . | . . . . . AOE 24 | . . . 17 7 Terrain Rammed . | . . . . . Walls Destroyed . | . . . . . Machines Disabled . | . . . . . Actions | -11 -10 -10 -9 -9 --------- Run | Scr Mat Min Mat Min Total 4046 | 65 888 614 1945 534 Wait 234 | . 22 8 204 . Move 3426 | 53 790 556 1556 471 Hop . | . . . . . Pick Up 54 | 6 13 5 18 12 Fast Attach 22 | 5 5 . 12 . Attach 19 | 1 . . 7 11 Detach 4 | . 1 . 1 2 Swap 36 | . 4 6 23 3 Drop 49 | . 15 4 27 3 Fire 163 | . 38 3 95 27 Melee 39 | . . 32 2 5 Ram . | . . . . . Kick . | . . . . . Crush . | . . . . . Escape Stasis . | . . . . . Rewire . | . . . . . Trap . | . . . . . Miscellaneous . | . . . . . Route ------- -11/Scrapyard -10/Materials (discovered 3 exits: *Mat x2 / *Min) -10/Mines (discovered 3 exits: *Mat x2 / [*Exi]) -9/Materials (discovered 4 exits: *Mat x3 / *Min) -9/Mines (discovered 2 exits: *Mat x2) History --------- Turn | Location | Event 6 | -11/Scrapyard | Discovered new exit (range 14) 75 | -11/Scrapyard | Entered Materials 273 | -10/Materials | Discovered new exit (range 3) 309 | -10/Materials | Build established: Mutant 881 | -10/Materials | Discovered new exit (range 8) 1015 | -10/Materials | Discovered new exit (range 14) 1333 | -10/Materials | Entered Mines 1362 | -10/Mines | Learned location of 1 exit from Materials 1368 | -10/Mines | Met a Derelict bent on vengeance 1405 | -10/Mines | Discovered new exit (range 4) 1488 | -10/Mines | Found the Drone Emporium 1496 | -10/Mines | Found Prototype Device 1592 | -10/Mines | Learned location of 2 exits from Materials 1607 | -10/Mines | Discovered new exit (range 14) 1739 | -10/Mines | Assisted by bots powering up and referring to "LRC-V3" 2025 | -10/Mines | Excavation squad dispatched 2025 | -10/Mines | A large section of the Mines collapsed 2314 | -10/Mines | Deemed a non-threat by the Exiles lab entrance 2314 | -10/Mines | Discovered new exit (range 5) 2509 | -10/Mines | Entered Materials 2509 | -9/Materials | Accompanied by 1 ally 2509 | -9/Materials | Evolved 2 slots: Utility x1, Weapon x1 2510 | -9/Materials | Identified exit to Materials 2812 | -9/Materials | Build established: Gunner 3023 | -9/Materials | Discovered new exit (range 9) 3189 | -9/Materials | Identified exit to Mines 3943 | -9/Materials | Repaired Imp. Medium Laser 4509 | -9/Materials | First assault squad dispatched 4585 | -9/Materials | Destroyed 7 combat bots 4668 | -9/Materials | Core integrity fell below 50% 4855 | -9/Materials | Identified Bomb Drone Bay 5103 | -9/Materials | Repaired Imp. Treads 5416 | -9/Materials | Entered Mines 5416 | -9/Mines | Accompanied by 1 ally 5635 | -9/Mines | Discovered exit to Materials (range 10) 5743 | -9/Mines | Discovered exit to Materials (range 15) 5793 | -9/Mines | Received a Rocket Launcher from a helpful Derelict 5869 | -9/Mines | Assembled infested the area 5927 | -9/Mines | Core integrity fell below 20% 5955 | -9/Mines | Lost 6 parts (1p2n2u1w) 5993 | -9/Mines | Destroyed 13 combat bots 6139 | -9/Mines | Learned Materials stockpile data 6183 | -9/Mines | Found a hidden stash of uninstalled traps 6328 | -9/Mines | Build established: Skirmisher 6453 | -9/Mines | Destroyed by D-53 Grenadier with Mini Grenade Launcher Last Messages --------------- 06192_ Acquired Heavy Explosive Trap. 06193_ Dropped Wheel. 06195_ Acquired Heavy Explosive Trap. 06236_ System corrupted: Component data lost. 06240_ U-05 Engineer lays Concrete. 06284_ 8ZMYJ:/&5>D1VSB80XKU&F K/0BJ4TXVP%TK: 06288_ S-10 Pest suffers critical hit (Burn). 06288_ S-10 Pest destroyed. 06291_ Switching to secondary target: S-10 Pest. 06291_ S-10 Pest destroyed. 06301_ Core Extractor disabled. 06305_ T-07 Excavator is excavating. 06364_ System corrupted: Component data lost. 06398_ K-01 Serf collects debris. 06426_ System corrupted: IFF burst signal emitted. 06443_ Technician 2a destroyed. 06445_ System corrupted: Imp. Medium Laser failed to cycle. 06448_ D-53 Grenadier suffers critical hit (Burn). 06448_ D-53 Grenadier destroyed. 06451_ The unstable cave ceiling collapses. Map ----- +----------------------------------------------------+ | ?????????# ##???# ###??????????????### ##???? | | #????????# ##????# #??????????????# #????? | | ?????????# ##?????# ??????????????# ##???? | | ???#?#???###?????# ???????????????+ ##??? | | ??????#??????#??# ??????????????+ # ##?? | | #?????####?##### ### #?????????????# # ### | | ?###### ### #???###????????????## # | | ?## #??????????????????# | | ?#%% #??????????????????# | | ## % #??????????????????## | | ## ## #?????####?????????## | | # #### ##??### ########?## ### | | ##?## ##?#?## <] ### ##?## | | ######## ######## ##???### | | ##?#??# ##### ## ##??????? | | % ###??# ##??# ## #???????? | | % #??####### # #??# ## #???????? | | %###% ###??????# ## #??# ##???????? | | #### #????????# ### #??# ###????????? | | ##????#?#?# #?# #??#########?????????? | | ##?????????# #### #????????????????????? | | ### ##?#???#????# ## ##?#????????#????????? | | #??###?#?????????# # ##???????????????#??? | | #??#?????????????# # ##??????#?????????#? | | #??????#??#??????#% #?#????????????????? | | #????###??????#??# d @ #??????????????????? | | ####### #?##???#??# #??????????????????? | | ?#? ##?#??##### ##############?????? | | ??# ?????# # #?????? | | ??# ????### ###### # ####### ###### #?????? | | ??? ??????# #????# #####?#?#?# #????# #?????? | | ???? ??????# #????# #?#????#??# ##???# #?????? | | ????? ?#????# #????# #?????????# #???## ##????? | | ?????# #####??# #?##?# #?????????# ##### ##??#? | | ?????# ## ##?# #????# ##????????# ##??? | | ###### # ### ##???# #???????#?####### #??? | | % ##???#*##??????????????## #?? | | ## #?# ##?##%#??#??#??????????## #? | | ## #?# #??#=##??#?#??#????????# #? | | ## ### #?##%##########????????# #? | | ?# ###[= [ #???????### ##? | | ?# #### #?# =%* #???#???#??####?? | | ?# #??# ##?# "" " " ##?###??????????? | | ?# ##?# ## ##??#=""" """ ### #??????????? | | ## #?# ######??##%""" """ #??????????? | | ## ###?#??????#* ### #??????????? | | ###### ###??????????# #??###?????????#? | | ?????####????????????#############???????????????? | | ???????#??#???????????????????????#??#?????#?????? | | ??????#???????????#??????????????????????????????? | +----------------------------------------------------+ Best States ------------- Heat Dissipation 72 Energy Generation 14 Energy Capacity 280 Matter Stores 300 Matter Capacity 300 Sight Range 16 Terrain Scan Range 16 Terrain Scan Density 10 Armor Coverage 150 Evasion (%) 55 Targeting Accuracy 6 Recoil Reduction 2 Item Schematics ----------------- Adv. Beam Cannon | -9/Materials | Scanalyzed Imp. Treads | -9/Materials | Scanalyzed Robot Schematics ------------------ None Fabricated ------------ Nothing Alien Tech Used ----------------- None Achievements -------------- None Challenges ------------ None Game ------ Seed WeaponMappingTearclaws Manual? 0 Play Time 01:01:52 Cumulative 164.7 hours Start 2022.03.20 @ 00:38:58 End 2022.03.20 @ 02:26:24 Sessions 1 Manual Loads 0 Difficulty Rogue Special Mode None Game No. 159 Rogue 159 Adventurer 0 Explorer 0 Win Type - Total 0 Types 0/0/0/0/0/0/0/0/0 Lore% 39 Gallery% 46 Achievement% 35 Wizard Run 0 Options --------- ASCII 0 Keyboard 0 Movement Mouse Keybinds 0 Fullscreen 1 Font 16/SmallcapsGlow Map View 75x55 Tactical HUD 1 Map Filters NONE Filters NONE Steam 1 RUN: 11c287a6-a3bc-4ddb-b9a7-5dcd2ec11e01